Cogmind - Beta 9.4 @@@ ROGUE MODE // 2020.01.08 @ 21:04:11 Player: BadAss McGhee Result: Destroyed by G-47 Trooper with Particle Gun Performance ------------- Evolutions (2) 1000 Regions Visited (3) 600 Robots Destroyed (42) 210 Value Destroyed (1427) 1427 Prototype IDs (1) 20 Alien Tech Used (0) 0 Bonus (79) 79 TOTAL SCORE: 3336 Bonus ------- High Alert Combat Kills 79 Cogmind --------- Core Integrity 0/550 Matter 216/300 Energy 264/265 System Corruption 7% Temperature Cool (312) Movement Walking (150) Ox1 Location -8/Materials Parts ------- > --- POWER (1) -------- Reinforced Ion Engine > --- PROPULSION (3) --- Aluminum Leg > --- UTILITY (5) ------ Advanced Sensor Array Advanced Signal Interpreter Terrain Scan Processor Hardened Light Armor Plating > --- WEAPON (2) ------- Particle Gun > --- INVENTORY (4) ---- Improved Ion Engine Advanced EMP Blaster Advanced EMP Blaster Peak State ------------ > --- POWER ------------ Ion Engine > --- PROPULSION ------- Improved Hover Unit Airjet Airjet > --- UTILITY ---------- Improved Heat Sink Small Storage Unit Advanced Signal Interpreter Terrain Scan Processor > --- WEAPON ----------- Heavy Assault Rifle Advanced EMP Blaster > --- INVENTORY -------- Light Ion Engine Particle Gun Light Assault Rifle Grenade Launcher Rocket Launcher Improved Datajack [Rating: 25] Favorites ----------- Power Ion Engine Engine Ion Engine Power Core Light Nuclear Core Propulsion Wheel Leg Aluminum Leg Wheel Wheel Hover Unit Airjet Utility Small Storage Unit Device Terrain Scanner Storage Small Storage Unit Processor Terrain Scan Processor Protection Hardened Light Armor Plating Weapon Medium Laser Energy Gun Medium Laser Ballistic Gun Heavy Assault Rifle Ballistic Cannon Improved Light Cannon Launcher Rocket Launcher Special Melee Weapon Datajack Build | -11 -10 -9 -8 ------- Run | Scr Mat Mat Mat Slots Evolved 4 | . . 2 2 Power . | . . . . Propulsion 1 | . . . 1 Utility 3 | . . 2 1 Weapon . | . . . . Parts Attached 43 | 6 1 16 20 Power 4 | 1 . 1 2 Engine 3 | 1 . 1 1 Core 1 | . . . 1 Reactor . | . . . . Propulsion 13 | 2 . 7 4 Treads . | . . . . Leg 3 | . . . 3 Wheel 2 | 2 . . . Hover 8 | . . 7 1 Flight . | . . . . Utility 8 | 1 1 2 4 Device 4 | . 1 . 3 Storage 1 | 1 . . . Processor 2 | . . 2 . Hackware . | . . . . Protection 1 | . . . 1 Artifact . | . . . . Weapon 18 | 2 . 6 10 Energy Gun 6 | 2 . 1 3 Energy Cannon . | . . . . Ballistic Gun 3 | . . 2 1 Ballistic Cannon 2 | . . . 2 Launcher 4 | . . 1 3 Special Weapon . | . . . . Impact Weapon . | . . . . Slashing Weapon . | . . . . Piercing Weapon . | . . . . Special Melee Weapon 3 | . . 2 1 Unidentified Prototypes 1 | . . . 1 Parts Lost 24 | . 1 6 17 Power 3 | . . 1 2 Propulsion 7 | . . 2 5 Utility 4 | . . 1 3 Weapon 10 | . 1 2 7 Highest Loss Streak 12 | . 1 4 12 Average Slot Usage (%) 78 | . 95 77 70 Engine 8 | . 14 7 6 Leg 1 | . . . 4 Wheel 6 | . 28 2 . Hover 10 | . . 15 10 Device 8 | . 10 7 7 Storage 9 | . 14 11 5 Processor 12 | . . 14 18 Energy Gun 11 | . 26 11 3 Ballistic Gun 2 | . . 4 2 Ballistic Cannon 2 | . . . 6 Launcher 2 | . . 2 3 Naked Turns . | . . . . Heaviest Build 25 | 13 14 15 25 Greatest Support 26 | 20 20 20 26 Greatest Overweight (x) 6 | . . 1 6 Average Overweight (x) . | . . . . Largest Inventory Capacity 6 | 6 6 6 6 Average Capacity 5 | 5 6 6 5 Most Carried 6 | 2 6 6 6 Average Carried 4 | 1 3 5 4 Final Capacity 6 | 6 6 6 4 Final Carried 6 | 2 6 5 3 Class Distribution -------------------- 100% | Mutant Dominant Class ---------------- Mutant | -10/Materials Mutant | -9/Materials Mutant | -8/Materials Resources | -11 -10 -9 -8 ----------- Run | Scr Mat Mat Mat Matter Collected 803 | 248 22 185 348 Remotely . | . . . . Salvage Created 1442 | . 233 390 819 Parts 84 | . 16 33 35 Haulers Intercepted . | . . . . Recyclers Shooed 2 | . . 1 1 Parts Field Recycled . | . . . . Retrieved Matter . | . . . . Parts Self-Destructed . | . . . . Prevented . | . . . . Kills | -11 -10 -9 -8 ------- Run | Scr Mat Mat Mat Combat Hostiles Destroyed 37 | . 6 10 21 Guns 23 | . 6 10 7 Cannons 5 | . . . 5 AOE 7 | . . . 7 Classes Destroyed 9 | . 1 3 5 Worker 1 | . . . 1 Builder 1 | . . . 1 Recycler 1 | . . . 1 Watcher 2 | . . 1 1 Swarmer 7 | . . 4 3 Grunt 23 | . 6 3 14 Brawler 2 | . . . 2 Sentry 4 | . . 3 1 Hunter 1 | . . . 1 Best Kill Streak 8 | . 3 6 8 Combat Bots Only 7 | . 3 6 7 Max Kills in Single Turn 4 | . 1 1 4 Gunslinging . | . . . . Exploded 3 | . . . 3 Melee . | . . . . Uniques/NPCs Destroyed . | . . . . Combat | -11 -10 -9 -8 -------- Run | Scr Mat Mat Mat Damage Taken 2479 | . 189 489 1801 Core 730 | . 66 102 562 Absorbed by Shields . | . . . . Core Remaining (%) 82 | 100 73 74 . Volleys Fired 124 | . 19 47 58 Largest 2 | . 2 2 2 Hottest 121 | . 100 90 121 Shots Fired 181 | . 33 54 94 Gun 130 | . 33 54 43 Cannon 40 | . . . 40 Launcher 11 | . . . 11 Special . | . . . . Kinetic 79 | . . 23 56 Thermal 65 | . 33 5 27 Explosive 7 | . . . 7 Electromagnetic 30 | . . 26 4 Robot Hit Streak 14 | . 8 6 14 Robot Miss Streak 3 | . 3 3 3 Penetration Max . | . . . . Secondary Targets 1 | . . . 1 Max Gunslinging Chain 1 | . . . 1 Shots Hit Robots 121 | . 22 30 69 Core Hits 75 | . 12 17 46 Critical Hits 2 | . . . 2 Critical Kills . | . . . . Critical Parts Destroyed 2 | . . . 2 Melee Attacks 2 | . . . 2 Impact . | . . . . Slashing . | . . . . Piercing . | . . . . Sneak Attacks . | . . . . Combat Hostiles . | . . . . Follow-up Attacks . | . . . . Damage Inflicted 2897 | . 274 465 2158 Guns 1162 | . 274 427 461 Cannons 575 | . . . 575 Explosions 1160 | . . 38 1122 Melee . | . . . . Ramming . | . . . . Kinetic 955 | . . 235 720 Thermal 628 | . 274 38 316 Explosive 644 | . . . 644 Electromagnetic 670 | . . 192 478 Impact . | . . . . Slashing . | . . . . Piercing . | . . . . Highest Corruption 7 | . . . 7 Average Corruption 6 | . . . 6 Corruption Purged . | . . . . Effects 1 | . . . 1 Message Errors 1 | . . . 1 Overload Shots . | . . . . Overflow Damage 51 | . . . 51 Projectiles . | . . . . Explosions 51 | . . . 51 Melee . | . . . . Knockbacks 8 | . . . 8 Impact . | . . . . Kinetic 8 | . . . 8 Secondary . | . . . . Self-Inflicted Damage 137 | . . . 137 Shots 4 | . . . 4 Rammed . | . . . . Targets Rammed . | . . . . Kicked . | . . . . Crushed . | . . . . Highest Temperature 303 | . 299 102 303 Average Temperature 74 | . 146 22 56 Received Heat Transfer 915 | . 102 156 657 Effects 1 | . 1 . . Interference 1 | . 1 . . Siege Activations . | . . . . Robots Corrupted 1 | . . . 1 Combat Hostiles 1 | . . . 1 Parts Fried 1 | . . . 1 Impact Corruptions . | . . . . Robots Melted 1 | . . . 1 Combat Hostiles 1 | . . . 1 Parts Melted 3 | . 3 . . Heat Transferred 1641 | . 814 50 777 Parts Sabotaged . | . . . . Parts Stolen . | . . . . Parts Stripped . | . . . . Power Chain Reactions 1 | . . 1 . Missiles Intercepted . | . . . . Alert | -11 -10 -9 -8 ------- Run | Scr Mat Mat Mat Peak Influence 603 | . 160 339 603 Average Influence 233 | . 61 201 404 Maximum Alert Level 2 | . . 1 2 Low Security (%) 52 | 100 100 59 10 Level 1 30 | . . 40 42 Level 2 16 | . . . 46 Level 3 . | . . . . Level 4 . | . . . . Level 5 . | . . . . High Security . | . . . . Max Security . | . . . . Squads Dispatched 9 | . 2 1 6 Investigation 4 | . 2 1 1 Extermination . | . . . . Reinforcement 2 | . . . 2 Assault . | . . . . Garrison 3 | . . . 3 Intercept . | . . . . Construction Impeded . | . . . . Haulers Reinforced . | . . . . Stealth | -11 -10 -9 -8 --------- Run | Scr Mat Mat Mat Distress Signals 4 | . 2 . 2 Communications Jammed 13 | . . . 13 Distress Signals 13 | . . . 13 Times Spotted 55 | . 9 14 32 Peak Tracking Total 17 | . 6 6 17 Tactical Retreats 5 | . . . 5 Traps | -11 -10 -9 -8 ------- Run | Scr Mat Mat Mat Traps Triggered 4 | . 2 1 1 Indirectly . | . . . . Trap Hack Attempts . | . . . . Triggered . | . . . . Disarmed . | . . . . Reprogrammed . | . . . . Reused . | . . . . Traps Extracted . | . . . . Installed . | . . . . Triggered . | . . . . Machines | -11 -10 -9 -8 ---------- Run | Scr Mat Mat Mat Machines Disabled 3 | . . 1 2 Max in Single Turn 1 | . . 1 1 Machines Sabotaged . | . . . . Garrisons Compromised . | . . . . Overloaded Fab Kills . | . . . . Fab Network Shutdowns . | . . . . Hacking | -11 -10 -9 -8 --------- Run | Scr Mat Mat Mat Machines Accessed . | . . . . Terminals . | . . . . Fabricators . | . . . . Repair Stations . | . . . . Recycling Units . | . . . . Scanalyzers . | . . . . Garrison Access . | . . . . Total Hacks . | . . . . Successful . | . . . . Failed . | . . . . Catastrophic . | . . . . Database Lockouts . | . . . . Manual . | . . . . Terminals . | . . . . Fabricators . | . . . . Repair Stations . | . . . . Recycling Units . | . . . . Scanalyzers . | . . . . Garrison Access . | . . . . Terminal Hacks . | . . . . Fabricator Hacks . | . . . . Repair Station Hacks . | . . . . Recycling Unit Hacks . | . . . . Scanalyzer . | . . . . Garrison Access Hacks . | . . . . Unauthorized Hacks . | . . . . Terminals . | . . . . Fabricators . | . . . . Repair Stations . | . . . . Recycling Units . | . . . . Scanalyzers . | . . . . Garrison Access . | . . . . Data Cores Recovered . | . . . . Used . | . . . . Hacking Detections . | . . . . Full Trace Events . | . . . . Feedback Events . | . . . . Feedback Blocked . | . . . . Robot Schematics Acquired . | . . . . Robots Built . | . . . . Matter . | . . . . Time . | . . . . Total Robot Build Rating . | . . . . Part Schematics Acquired . | . . . . Parts Built . | . . . . Matter . | . . . . Time . | . . . . Total Part Build Rating . | . . . . Parts Repaired . | . . . . Time . | . . . . Parts Recycled . | . . . . Recycled Matter . | . . . . Retrieved Matter . | . . . . Retrieved Components . | . . . . Parts Scanalyzed . | . . . . Part Schematics Acquired . | . . . . Parts Damaged . | . . . . Bothacking | -11 -10 -9 -8 ------------ Run | Scr Mat Mat Mat Used RIF Installer . | . . . . Robots Hacked 1 | . . . 1 Non-combat . | . . . . Combat 1 | . . . 1 Robot Hacks Applied 1 | . . . 1 parse_system 1 | . . . 1 Relay Couplers Released . | . . . . Robots Rewired . | . . . . Allies Hacked . | . . . . Hacks Repelled . | . . . . Allies | -11 -10 -9 -8 -------- Run | Scr Mat Mat Mat Total Allies . | . . . . Largest Group . | . . . . Highest-Rated Group . | . . . . Highest-Rated Ally . | . . . . Total Orders . | . . . . Ally Attacks . | . . . . Total Damage . | . . . . Kills . | . . . . Allies Corrupted . | . . . . Allies Melted . | . . . . Intel | -11 -10 -9 -8 ------- Run | Scr Mat Mat Mat Robot Analysis Total . | . . . . Derelict Logs Recovered . | . . . . Drone Launches . | . . . . Drone Recoveries . | . . . . Exploration | -11 -10 -9 -8 ------------- Run | Scr Mat Mat Mat Turns Passed 921 | 63 180 348 330 Spaces Moved 656 | 64 153 288 151 Core 22 | 5 . . 17 Treads . | . . . . Legs 26 | . . . 26 Wheels 254 | 59 153 42 . Hover 354 | . . 246 108 Flight . | . . . . Fastest Speed 50 | 50 80 56 52 Average Speed 76 | 77 80 73 76 Slowest Speed 350 | 80 80 120 350 Overloaded Moves . | . . . . Propulsion Burnouts . | . . . . Robots Hopped . | . . . . Cave-ins Triggered . | . . . . Exploration Rate (%) 20 | 4 35 27 17 Regions Visited 3 Branch Regions . Pre-discovered Areas . | . . . . Known Exits Taken 1 | . . 1 . Unknown Exits Taken 2 | 1 1 . . Scrap Searched . | . . . . Spaces Dug . | . . . . Terrain Destroyed 58 | . . 2 56 Melee . | . . . . Projectile 2 | . . . 2 AOE 56 | . . 2 54 Actions | -11 -10 -9 -8 --------- Run | Scr Mat Mat Mat Total 890 | 77 177 366 270 Wait 26 | . . 4 22 Move 653 | 63 152 287 151 Hop . | . . . . Pick Up 29 | 8 5 5 11 Fast Attach 18 | . . 9 9 Attach 18 | 6 1 3 8 Detach . | . . . . Swap 7 | . . 4 3 Drop 13 | . . 7 6 Fire 124 | . 19 47 58 Melee 2 | . . . 2 Ram . | . . . . Kick . | . . . . Crush . | . . . . Escape Stasis . | . . . . Rewire . | . . . . Trap . | . . . . Miscellaneous . | . . . . Route ------- -11/Scrapyard -10/Materials -9/Materials (discovered 2 exits: *Mat / [*Min]) -8/Materials History --------- Turn | Location | Event 13 | -11/Scrapyard | Discovered new exit (range 16) 64 | -11/Scrapyard | Entered Materials 168 | -10/Materials | Discovered new exit (range 16) 244 | -10/Materials | Entered another Materials area 244 | -9/Materials | Evolved 2 slots: Utility x2 303 | -9/Materials | Discovered new exit (range 16) 311 | -9/Materials | Build established: Mutant 517 | -9/Materials | Lost 4 parts (1p1n1u1w) 589 | -9/Materials | Discovered new exit (range 4) 591 | -9/Materials | Identified exit to Materials 592 | -9/Materials | Entered another Materials area 592 | -8/Materials | Evolved 2 slots: Propulsion x1, Utility x1 684 | -8/Materials | Garrison activated, responded to threat 732 | -8/Materials | Destroyed 7 combat bots 772 | -8/Materials | Core integrity fell below 50% 800 | -8/Materials | Core integrity fell below 20% 828 | -8/Materials | Lost 12 parts (2p3n2u5w) 922 | -8/Materials | Destroyed by G-47 Trooper with Particle Gun Last Messages --------------- 00898_ R-06 Scavenger collects Imp. Heat Sink. 00899_ K-01 Serf collects debris. 00901_ R-06 Scavenger collects Lgt. Nuclear Core. 00903_ K-01 Serf collects debris. 00904_ Imp. Light Cannon destroyed. 00904_ System corrupted by crushing effect (+3). 00904_ Knocked back. 00905_ R-06 Scavenger collects Grenade Launcher. 00908_ K-01 Serf collects debris. 00908_ Transmission Jammer destroyed. 00908_ System corrupted by crushing effect (+3). 00908_ Imp. Light Cannon destroyed. 00910_ U-05 Engineer builds a Door. 00910_ Aluminum Leg destroyed. 00910_ System corrupted by crushing effect (+1). 00910_ Knocked back. 00911_ B-36 Bruiser destroyed. 00915_ :NUCBDVEK5A U PMW/I9MOD|AH5L4NOF%RC|W8 00915_ U-05 Engineer builds a Wall. 00920_ K-01 Serf collects debris. Map ----- +----------------------------------------------------+ | ?????????????????????????????????????????????????? | | ?????????????????????????????????????????????????? | | ?????????????????????????????????????????????????? | | ?????????????????????????????????????????????????? | | ?????????????????????????????????????????????????? | | ?????????????????????????????????????????????????? | | ?????????????????????????????????????????????????? | | ?????????????????????????????????????????????????? | | ?????????????????????????????????????????????????? | | ?????????????????????????????????????????????????? | | ?????????????????????????????????????????????????? | | ?????????????????????????????????????????????????? | | ?????????????????????????????????????????????????? | | ?????????????????????????????????????????????????? | | ?????????????????????????????????????????????????? | | ?????????????????????????????????????????????????? | | ??????????????????????###+###????????????????????? | | ??????????????????????# #????????????????????? | | ??????????????????????? ?????????????????????? | | ??????????????????????? ?????????????????????? | | ???????????????????????? ????? ????????????????? | | ???????????????????????? ?##+#/#####???????????? | | ????????????????????????# #?# #???????????? | | ????????????????????????#%#?# !![ #???????????? | | ????????????????????????# #?# ![[ #???????????? | | ????????????????????????#@#?# ![ #???##+###??? | | ?????????##/######??????# #?# # ###### ???? | | ?????? % #####g###### =% "T" # #???? | | ?????? % % %+% [ + #???? | | ?????????"" %#####k###### # ##### | | ?????????G" #####?????## ]# # ] | | ???????????????????????## "" # # | | ?????????????????w?????## %!%%## # # | | ????????????????????????#! ## * + + | | ????????????????????????# !! ## # # " | | ????????????????????????#!! ############ # " | | ????????????????????????#!! #??????????# # " | | ????????????????????????#### ##??????????# # | | ???????????????????????????###???????????# ##### | | ?????????????????????????????????????????# # | | ?????????????????????????????????????????# # | | ?????????????????????????????????????????# # """ | | ????????????????????????????????########## # """ | | ????????????????????????????????# # + """ | | ????????????????????????????????# """ # # | | ????????????????????????????????# """ # # | | ????????????????????????????????# """ # | | ????????????????????????????????# # ### | | ????????????????????????????????# """ # #?? | | ????????????????????????????????# """ ### | +----------------------------------------------------+ Best States ------------- Heat Dissipation 45 Energy Generation 14 Energy Capacity 265 Matter Stores 300 Matter Capacity 300 Sight Range 16 Robot Scan Range 16 Terrain Scan Range 14 Terrain Scan Density 85 Jamming Range 8 Armor Coverage 150 Evasion (%) 54 Item Schematics ----------------- None Robot Schematics ------------------ None Fabricated ------------ Nothing Alien Tech Used ----------------- None Achievements -------------- None Challenges ------------ None Game ------ Seed ElectronMachineLog Manual? 0 Play Time 00:25:20 Cumulative 66.3 hours Start 2020.01.08 @ 20:40:25 End 2020.01.08 @ 21:04:11 Sessions 1 Manual Loads 0 Difficulty Rogue Special Mode None Game No. 83 Rogue 83 Adventurer 0 Explorer 0 Win Type - Total 0 Types 0/0/0/0/0/0/0 Lore% 11 Gallery% 30 Achievement% 20 Wizard Run 0 Options --------- ASCII 0 Keyboard 0 Movement Mouse Keybinds 0 Fullscreen 1 Font 18/SmallcapsGlow Map View 76x50 Tactical HUD 1 Map Filters NONE Filters NONE Steam 1 RUN: ea5b723e-f5f4-44e3-a1a4-3893954c9536